fUSD/lending_fUSD_20260507
["ID","MTS","AMOUNT","RATE_DAILY","PERIOD"]
[421748485,1778095833000,-152.0,0.00019845,2]
[421748483,1778095833000,-152.0,0.00019845,2]
[421748488,1778095833000,-296.0,0.00019848,2]
[421748482,1778095833000,-150.0,0.00019845,2]
[421748484,1778095833000,-151.0,0.00019845,2]
[421748486,1778095833000,-150.0,0.00019845,2]
[421748489,1778095833000,-150.0,0.00019848,2]
[421748491,1778095833000,-151.0,0.00019848,2]
[421748490,1778095833000,-151.0,0.00019848,2]
[421748492,1778095833000,-151.0,0.00019848,2]
[421748440,1778095833000,-1852.42,0.00017838,2]
[421748462,1778095833000,-161.49,0.00018566,2]
[421748457,1778095833000,-154.97,0.00018533,4]
[421748481,1778095833000,-2206.0,0.00019828,2]
[421748463,1778095833000,-184.0912663,0.00018622,7]
[421748459,1778095833000,-23629.32,0.00018533,2]
[421748431,1778095833000,-718.2035,0.00017593,2]
[421748433,1778095833000,-781.2768717,0.00017641,2]
[421748437,1778095833000,-781.2768717,0.00017731,2]
[421748435,1778095833000,-357.84244269,0.00017721,2]
[421748436,1778095833000,-1000.0,0.00017721,2]
[421748434,1778095833000,-166.66,0.00017647,2]
[421748442,1778095833000,-781.2768717,0.0001793,2]
[421748452,1778095833000,-905.1,0.0001841,2]
[421748453,1778095833000,-508.66614026,0.0001842,2]
[421748441,1778095833000,-163.66,0.0001784,2]
[421748444,1778095833000,-781.2768717,0.00017966,2]
[421748446,1778095833000,-781.2768717,0.00017997,2]
[421748443,1778095833000,-442.45,0.00017953,2]
[421748432,1778095833000,-781.2768717,0.00017605,2]
[421748447,1778095833000,-2351.0,0.00018025,2]
[421748461,1778095833000,-166.72,0.00018533,2]
[421748445,1778095833000,-2494.55939289,0.00017981,2]
[421748460,1778095833000,-150.99,0.00018533,2]
[421748464,1778095833000,-163.66,0.0001871,2]
[421748454,1778095833000,-2586.85809042,0.00018529,2]
[421748458,1778095833000,-1554.24,0.00018533,2]
[421748465,1778095833000,-761.62,0.0001872,2]
[421748456,1778095833000,-9999.99,0.00018533,2]
[421748466,1778095833000,-493.08830737,0.0001875,2]
[421748451,1778095833000,-508.66614026,0.00018367,2]
[421748448,1778095833000,-179.33,0.00018196,2]
[421748450,1778095833000,-163.66,0.00018275,2]
[421748449,1778095833000,-1477.51403986,0.00018268,2]
[421748527,1778095834000,-161.49,0.00020113,2]
[421748509,1778095834000,-151.0,0.00019947,2]
[421748511,1778095834000,-151.0,0.00019947,2]
[421748516,1778095834000,-151.0,0.00019948,2]
[421748515,1778095834000,-152.0,0.00019947,2]
[421748507,1778095834000,-150.0,0.00019947,2]
[421748526,1778095834000,-384.65564786,0.000201,2]
[421748524,1778095834000,-160.0,0.00020091,2]
[421748517,1778095834000,-1487.46726571,0.0002,5]
[421748519,1778095834000,-631.0,0.0002,2]
[421748518,1778095834000,-973.18824916,0.0002,2]
[421748523,1778095834000,-569.32780937,0.00020005,2]
[421748525,1778095834000,-214.60306816,0.00020091,2]
[421748514,1778095834000,-152.0,0.00019947,2]
[421748521,1778095834000,-294.0,0.0002,2]
[421748522,1778095834000,-813.0,0.0002,2]
[421748508,1778095834000,-151.0,0.00019947,2]
[421748499,1778095834000,-152.0,0.00019946,2]
[421748506,1778095834000,-150.0,0.00019947,2]
[421748520,1778095834000,-154.0,0.0002,2]
[421748501,1778095834000,-150.0,0.00019946,2]
[421748502,1778095834000,-151.0,0.00019946,2]
[421748494,1778095834000,-249.6526586,0.00019946,2]
[421748495,1778095834000,-150.0,0.00019946,2]
[421748498,1778095834000,-151.0,0.00019946,2]
[421748493,1778095834000,-151.0,0.00019946,2]
[421748496,1778095834000,-151.0,0.00019946,2]
[421748497,1778095834000,-153.0,0.00019946,2]
[421748500,1778095834000,-153.0,0.00019946,2]
[421748503,1778095834000,-151.0,0.00019946,2]
[421748505,1778095834000,-153.0,0.00019947,2]
[421748504,1778095834000,-151.0,0.00019947,2]
[421748512,1778095834000,-151.0,0.00019947,2]
[421748513,1778095834000,-151.0,0.00019947,2]
[421748510,1778095834000,-150.0,0.00019947,2]
[421748528,1778095834000,-500.0,0.00020173,2]
[421748538,1778095834000,-243.57107582,0.00020721,2]
[421748530,1778095834000,-2884.75459676,0.00020173,2]
[421748547,1778095834000,-200.0,0.00021208,2]
[421748552,1778095834000,-200.0,0.00021208,2]
[421748553,1778095834000,-200.0,0.00021208,2]
[421748555,1778095834000,-1424.58,0.00021273,2]
[421748554,1778095834000,-350.0,0.00021268,2]
[421748558,1778095834000,-876.83,0.00021417,2]
[421748560,1778095834000,-500.0,0.00021432,2]
[421748557,1778095834000,-22327.7038016,0.00021332,2]
[421748561,1778095834000,-26307.94205397,0.00021433,2]
[421748559,1778095834000,-9132.2255584,0.00021425,2]
[421748562,1778095834000,-66278.19785445,0.00021433,2]
[421748564,1778095834000,-82710.89171341,0.00021433,2]
[421748565,1778095834000,-5296.33762282,0.00021433,2]
[421748566,1778095834000,-753.07092822,0.00021433,2]
[421748529,1778095834000,-150.0,0.00020173,2]
[421748548,1778095834000,-200.0,0.00021208,2]
[421748545,1778095834000,-200.0,0.00021208,2]
[421748556,1778095834000,-18056.11,0.00021273,2]
[421748546,1778095834000,-200.0,0.00021208,2]
[421748531,1778095834000,-501.73166366,0.0002018,2]
[421748549,1778095834000,-200.0,0.00021208,2]
[421748534,1778095834000,-569.32780937,0.00020209,2]
[421748535,1778095834000,-905.1,0.00020381,2]
[421748533,1778095834000,-164.82858637,0.000202,2]
[421748532,1778095834000,-10261.9346,0.00020181,2]
[421748536,1778095834000,-164.82858637,0.000204,2]
[421748540,1778095834000,-2991.49051684,0.00020721,2]
[421748537,1778095834000,-164.82858637,0.000206,2]
[421748550,1778095834000,-200.0,0.00021208,2]
[421748551,1778095834000,-200.0,0.00021208,2]
[421748539,1778095834000,-250.0,0.00020721,2]
[421748542,1778095834000,-294.0,0.00021,2]
[421748543,1778095834000,-813.0,0.00021,2]
[421748541,1778095834000,-631.0,0.00021,2]
[421748544,1778095834000,-200.0,0.00021208,2]
[421748677,1778095838000,-502.0447285,0.00021473,2]
[421748681,1778095838000,-475.44,0.00021781,2]
[421748683,1778095838000,-5000.0,0.00021918,2]
[421748688,1778095838000,-294.0,0.00022,2]
[421748690,1778095838000,-1000.0,0.00022021,2]
[421748682,1778095838000,-543.21,0.00021816,2]
[421748685,1778095838000,-3069.42,0.00021918,2]
[421748680,1778095838000,-161.49,0.0002166,2]
[421748689,1778095838000,-813.0,0.00022,2]
[421748698,1778095838000,-1000.0,0.00022021,2]
[421748686,1778095838000,-631.0,0.00022,2]
[421748692,1778095838000,-1000.0,0.00022021,2]
[421748693,1778095838000,-1000.0,0.00022021,2]
[421748695,1778095838000,-1000.0,0.00022021,2]
[421748696,1778095838000,-501.56593355,0.00022021,2]
[421748697,1778095838000,-1000.0,0.00022021,2]
[421748699,1778095838000,-1000.0,0.00022021,2]
[421748678,1778095838000,-500.0,0.00021473,2]
[421748691,1778095838000,-1000.0,0.00022021,2]
[421748679,1778095838000,-1055.34,0.00021528,2]
[421748659,1778095838000,-252.9257169,0.00021433,2]
[421748667,1778095838000,-614.70602991,0.00021473,2]
[421748694,1778095838000,-1000.0,0.00022021,2]
[421748656,1778095838000,-580.29201335,0.00021433,2]
[421748657,1778095838000,-6859.99277437,0.00021433,2]
[421748658,1778095838000,-522.54753,0.00021433,2]
[421748660,1778095838000,-34265.00632791,0.00021433,2]
[421748661,1778095838000,-2247.3921026,0.00021433,2]
[421748662,1778095838000,-500.0,0.00021473,2]
[421748663,1778095838000,-517.16375829,0.00021473,2]
[421748665,1778095838000,-500.0,0.00021473,2]
[421748673,1778095838000,-500.0,0.00021473,2]
[421748664,1778095838000,-500.0,0.00021473,2]
[421748674,1778095838000,-500.0,0.00021473,2]
[421748676,1778095838000,-267.02889892,0.00021473,2]
[421748668,1778095838000,-500.0,0.00021473,2]
[421748671,1778095838000,-500.0,0.00021473,2]
[421748672,1778095838000,-501.44323485,0.00021473,2]
[421748670,1778095838000,-500.0,0.00021473,2]
[421748666,1778095838000,-500.0,0.00021473,2]
[421748675,1778095838000,-500.0,0.00021473,2]
[421748669,1778095838000,-318.00937475,0.00021473,2]
[421748705,1778095838000,-905.1,0.00022353,2]
[421748719,1778095838000,-241.722,0.00022879,2]
[421748702,1778095838000,-10689.98785267,0.00022115,2]
[421748726,1778095838000,-1221.0,0.00022879,2]
[421748731,1778095838000,-1268.0,0.00022879,2]
[421748725,1778095838000,-183.0,0.00022879,2]
[421748732,1778095838000,-150.322,0.00022879,2]
[421748728,1778095838000,-670.44,0.00022879,2]
[421748729,1778095838000,-6043.0,0.00022879,2]
[421748730,1778095838000,-3536.0,0.00022879,2]
[421748740,1778095838000,-2000.0,0.00023116,2]
[421748727,1778095838000,-925.0,0.00022879,2]
[421748739,1778095838000,-2000.0,0.00023116,2]
[421748744,1778095838000,-8143.35224772,0.00023395,2]
[421748737,1778095838000,-813.0,0.00023,2]
[421748733,1778095838000,-384.6556478,0.00022929,2]
[421748735,1778095838000,-631.0,0.00023,2]
[421748741,1778095838000,-1500.0,0.00023116,2]
[421748738,1778095838000,-2000.0,0.00023116,2]
[421748742,1778095838000,-2000.0,0.00023116,2]
[421748703,1778095838000,-1025.73135107,0.00022116,5]
[421748734,1778095838000,-689.23378414,0.00023,2]
[421748721,1778095838000,-194.277,0.00022879,2]
[421748736,1778095838000,-294.0,0.00023,2]
[421748722,1778095838000,-250.0,0.00022879,2]
[421748704,1778095838000,-184.0912663,0.00022347,7]
[421748723,1778095838000,-241.543,0.00022879,2]
[421748700,1778095838000,-617.53083552,0.00022021,2]
[421748701,1778095838000,-474.11,0.00022055,2]
[421748707,1778095838000,-1500.0,0.00022568,2]
[421748743,1778095838000,-161.49,0.00023207,2]
[421748718,1778095838000,-200.0,0.00022793,2]
[421748709,1778095838000,-1500.0,0.00022568,2]
[421748708,1778095838000,-309.24927612,0.00022568,2]
[421748717,1778095838000,-1424.58,0.00022691,2]
[421748706,1778095838000,-200.0,0.00022567,2]
[421748714,1778095838000,-1500.0,0.00022568,2]
[421748713,1778095838000,-1504.32156241,0.00022568,2]
[421748711,1778095838000,-500.0,0.00022568,2]
[421748712,1778095838000,-1500.0,0.00022568,2]
[421748716,1778095838000,-761.62,0.00022691,2]
[421748710,1778095838000,-168.81759909,0.00022568,2]
[421748715,1778095838000,-1500.0,0.00022568,2]
[421748724,1778095838000,-243.041,0.00022879,2]
[421748720,1778095838000,-160.97,0.00022879,2]
[421748754,1778095840000,-294.0,0.00024,2]
[421748756,1778095840000,-1400.53,0.00024111,2]
[421748759,1778095840000,-1356.57211453,0.00024212,2]
[421748761,1778095840000,-905.1,0.00024324,2]
[421748779,1778095840000,-500.0,0.00025095,2]
[421748769,1778095840000,-1385.17092439,0.0002476,2]
[421748780,1778095840000,-157.34,0.00025156,7]
[421748778,1778095840000,-231.08,0.00025043,2]
[421748758,1778095840000,-305.82,0.00024174,2]
[421748768,1778095840000,-157.86,0.00024658,2]
[421748760,1778095840000,-3000.0,0.00024212,2]
[421748757,1778095840000,-342.75,0.00024174,2]
[421748753,1778095840000,-631.0,0.00024,2]
[421748767,1778095840000,-157.34,0.00024658,2]
[421748763,1778095840000,-10689.98785267,0.00024655,2]
[421748764,1778095840000,-1000.0,0.00024658,2]
[421748755,1778095840000,-813.0,0.00024,2]
[421748765,1778095840000,-155.58,0.00024658,2]
[421748749,1778095840000,-2500.0,0.00023664,2]
[421748750,1778095840000,-2500.0,0.00023664,2]
[421748752,1778095840000,-1055.34,0.00023681,2]
[421748751,1778095840000,-2508.23716968,0.00023664,2]
[421748748,1778095840000,-876.83,0.00023558,2]
[421748746,1778095840000,-506.2,0.00021205,2]
[421748747,1778095840000,-14184.35155388,0.00023395,2]
[421748775,1778095840000,-633.0,0.00025,2]
[421748766,1778095840000,-160.04333333,0.00024658,2]
[421748771,1778095840000,-153.50488133,0.00024903,30]
[421748762,1778095840000,-177.96,0.00024646,2]
[421748774,1778095840000,-154.05,0.00024989,2]
[421748777,1778095840000,-817.26625298,0.00025,2]
[421748803,1778095840000,-700.0,0.000259,9]
[421748804,1778095840000,-374.34479523,0.00025927,2]
[421748801,1778095840000,-1268.0,0.00025879,2]
[421748802,1778095840000,-150.0,0.00025879,2]
[421748805,1778095840000,-905.1,0.00026296,2]
[421748800,1778095840000,-1656.023,0.00025879,2]
[421748797,1778095840000,-925.0,0.00025879,2]
[421748798,1778095840000,-624.0,0.00025879,2]
[421748795,1778095840000,-1055.34,0.00025834,2]
[421748796,1778095840000,-1221.0,0.00025879,2]
[421748787,1778095840000,-283.0,0.0002549,5]
[421748794,1778095840000,-305.82,0.00025786,2]
[421748788,1778095840000,-157.34,0.00025654,30]
[421748799,1778095840000,-6043.0,0.00025879,2]
[421748782,1778095840000,-231.08,0.00025292,2]
[421748773,1778095840000,-154.05,0.00024942,2]
[421748772,1778095840000,-154.04069031,0.00024939,2]
[421748770,1778095840000,-153.50488133,0.00024898,30]
[421748776,1778095840000,-313.0,0.00025,2]
[421748786,1778095840000,-231.08,0.00025487,2]
[421748783,1778095840000,-501.40664377,0.00025433,2]
[421748781,1778095840000,-157.86,0.00025156,7]
[421748790,1778095840000,-150.0,0.000257,30]
[421748793,1778095840000,-18056.11,0.00025786,2]
[421748789,1778095840000,-157.86,0.00025654,30]
[421748791,1778095840000,-384.6556478,0.00025757,2]
[421748792,1778095840000,-342.75,0.00025786,2]
[421748784,1778095840000,-22327.7038016,0.00025458,2]
[421748842,1778095841000,-240.695354,0.000281,10]
[421748843,1778095841000,-905.1,0.00028267,2]
[421748846,1778095841000,-376.74324436,0.00028497,2]
[421748847,1778095841000,-384.6556478,0.00028586,2]
[421748835,1778095841000,-150.0,0.00028,2]
[421748844,1778095841000,-150.0,0.0002827,30]
[421748841,1778095841000,-214.60306816,0.00028,10]
[421748836,1778095841000,-200.0,0.00028,10]
[421748834,1778095841000,-2247.3921026,0.00027912,2]
[421748837,1778095841000,-214.60306816,0.00028,7]
[421748845,1778095841000,-155.58,0.0002831,2]
[421748848,1778095841000,-247.33,0.00028657,2]
[421748855,1778095841000,-157.34,0.00028828,30]
[421748851,1778095841000,-157.86,0.00028745,7]
[421748849,1778095841000,-157.86,0.00028664,2]
[421748850,1778095841000,-157.34,0.00028667,2]
[421748854,1778095841000,-157.86,0.00028826,30]
[421748853,1778095841000,-214.60306816,0.000288,7]
[421748859,1778095841000,-157.86,0.00028907,2]
[421748857,1778095841000,-2062.672,0.00028879,2]
[421748860,1778095841000,-157.34,0.00028909,2]
[421748861,1778095841000,-152.0,0.0002891,3]
[421748856,1778095841000,-1221.0,0.00028879,2]
[421748864,1778095841000,-157.86,0.0002907,30]
[421748858,1778095841000,-1268.0,0.00028879,2]
[421748832,1778095841000,-500.0,0.00027912,2]
[421748852,1778095841000,-157.34,0.00028747,7]
[421748833,1778095841000,-223827.2045354,0.00027912,2]
[421748816,1778095841000,-151.0,0.00027397,7]
[421748830,1778095841000,-698.61013109,0.00027812,2]
[421748806,1778095841000,-1350.0,0.00026438,2]
[421748807,1778095841000,-450.0,0.00026438,30]
[421748809,1778095841000,-234.0,0.0002669,5]
[421748808,1778095841000,-500.0,0.00026607,2]
[421748819,1778095841000,-1500.0,0.00027397,2]
[421748811,1778095841000,-283.38513938,0.00026979,2]
[421748820,1778095841000,-649.87,0.00027397,20]
[421748810,1778095841000,-2287.0,0.0002669,5]
[421748815,1778095841000,-199.03596417,0.000273,30]
[421748817,1778095841000,-160.04,0.00027397,2]
[421748818,1778095841000,-150.0,0.00027397,2]
[421748812,1778095841000,-214.60306816,0.00027,3]
[421748863,1778095841000,-157.34,0.0002899,7]
[421748813,1778095841000,-500.0,0.00027155,2]
[421748814,1778095841000,-10689.98785267,0.00027196,2]
[421748821,1778095841000,-300.0,0.00027397,2]
[421748823,1778095841000,-16566.63,0.00027397,10]
[421748825,1778095841000,-11504.6,0.00027397,10]
[421748824,1778095841000,-13805.53,0.00027397,10]
[421748827,1778095841000,-265.42,0.000274,7]
[421748822,1778095841000,-525.52,0.00027397,2]
[421748826,1778095841000,-57689.96,0.000274,7]
[421748828,1778095841000,-22327.7038016,0.00027521,2]
[421748829,1778095841000,-500.0,0.000278,7]
[421748831,1778095841000,-9132.2255584,0.00027903,2]
[421748840,1778095841000,-247.33,0.00028,2]
[421748838,1778095841000,-247.33,0.00028,2]
[421748839,1778095841000,-247.33,0.00028,2]
[421748862,1778095841000,-157.86,0.00028989,7]
[421748911,1778095841000,-392.57,0.00030737,2]
[421748866,1778095841000,-306.99489755,0.00029141,2]
[421748894,1778095841000,-755.0807186,0.00030195,2]
[421748895,1778095841000,-905.1,0.00030239,2]
[421748893,1778095841000,-160.04,0.00030137,30]
[421748896,1778095841000,-374.0,0.00030301,120]
[421748897,1778095841000,-800.0,0.00030418,2]
[421748903,1778095841000,-800.0,0.00030418,2]
[421748905,1778095841000,-800.0,0.00030418,2]
[421748906,1778095841000,-756.0,0.00030418,2]
[421748907,1778095841000,-200.0,0.00030437,2]
[421748910,1778095841000,-152.0,0.00030683,2]
[421748914,1778095841000,-157.0,0.00031214,30]
[421748912,1778095841000,-150.0,0.00031011,2]
[421748898,1778095841000,-800.0,0.00030418,2]
[421748915,1778095841000,-161.0,0.00031214,30]
[421748908,1778095841000,-152.0,0.00030549,4]
[421748904,1778095841000,-800.0,0.00030418,2]
[421748909,1778095841000,-224.0,0.00030585,120]
[421748917,1778095841000,-294.0,0.00031214,30]
[421748916,1778095841000,-151.0,0.00031214,30]
[421748918,1778095841000,-153.0,0.00031214,30]
[421748919,1778095841000,-154.0,0.00031214,30]
[421748920,1778095841000,-813.0,0.00031214,30]
[421748922,1778095841000,-500.0,0.00031299,2]
[421748923,1778095841000,-57689.96,0.000313,7]
[421748924,1778095841000,-265.42,0.000313,7]
[421748921,1778095841000,-151.0,0.00031297,7]
[421748913,1778095841000,-631.0,0.00031211,30]
[421748892,1778095841000,-160.04,0.00030137,2]
[421748865,1778095841000,-157.34,0.00029071,30]
[421748901,1778095841000,-800.0,0.00030418,2]
[421748891,1778095841000,-200.0,0.00030137,40]
[421748867,1778095841000,-157.86,0.00029151,2]
[421748868,1778095841000,-157.34,0.00029152,2]
[421748870,1778095841000,-157.89,0.00029232,7]
[421748871,1778095841000,-150.0,0.00029534,2]
[421748869,1778095841000,-157.41,0.00029232,7]
[421748874,1778095841000,-1500.0,0.000299,10]
[421748873,1778095841000,-10689.98785267,0.00029737,2]
[421748872,1778095841000,-22327.7038016,0.00029584,2]
[421748876,1778095841000,-360.68857981,0.00029999,2]
[421748886,1778095841000,-237.21283934,0.00029999,2]
[421748885,1778095841000,-500.0,0.00029999,2]
[421748878,1778095841000,-330.65205756,0.00029999,2]
[421748875,1778095841000,-698.61013107,0.00029944,2]
[421748887,1778095841000,-500.0,0.00029999,2]
[421748877,1778095841000,-164.25390185,0.00029999,2]
[421748900,1778095841000,-800.0,0.00030418,2]
[421748899,1778095841000,-800.0,0.00030418,2]
[421748890,1778095841000,-200.0,0.00030137,2]
[421748881,1778095841000,-500.0,0.00029999,2]
[421748884,1778095841000,-430.76744861,0.00029999,2]
[421748883,1778095841000,-500.0,0.00029999,2]
[421748902,1778095841000,-800.0,0.00030418,2]
[421748882,1778095841000,-500.0,0.00029999,2]
[421748880,1778095841000,-500.0,0.00029999,2]
[421748888,1778095841000,-1295.39015141,0.00030037,7]
[421748889,1778095841000,-152.0,0.00030081,3]
[421748879,1778095841000,-184.69091203,0.00029999,2]
[421748965,1778095842000,-161.0,0.00032214,30]
[421748979,1778095842000,-2000.0,0.00032294,2]
[421748968,1778095842000,-153.0,0.00032214,30]
[421748978,1778095842000,-2000.0,0.00032294,2]
[421748964,1778095842000,-157.0,0.00032214,30]
[421748959,1778095842000,-698.61013107,0.00032076,2]
[421748961,1778095842000,-152.0,0.00032188,5]
[421748966,1778095842000,-151.0,0.00032214,30]
[421748963,1778095842000,-631.0,0.00032211,30]
[421748960,1778095842000,-224.0,0.00032114,120]
[421748980,1778095842000,-2000.0,0.00032294,2]
[421748962,1778095842000,-905.1,0.0003221,5]
[421748969,1778095842000,-154.0,0.00032214,30]
[421748985,1778095842000,-1049.25710603,0.00032409,2]
[421748970,1778095842000,-813.0,0.00032214,30]
[421748971,1778095842000,-10689.98785267,0.00032278,2]
[421748972,1778095842000,-2000.0,0.00032294,2]
[421748975,1778095842000,-2000.0,0.00032294,2]
[421748977,1778095842000,-2000.0,0.00032294,2]
[421748973,1778095842000,-2000.0,0.00032294,2]
[421748976,1778095842000,-2000.0,0.00032294,2]
[421748974,1778095842000,-2000.0,0.00032294,2]
[421748981,1778095842000,-2000.0,0.00032294,2]
[421748983,1778095842000,-1000.0,0.00032409,2]
[421748984,1778095842000,-1000.0,0.00032409,2]
[421748986,1778095842000,-1000.0,0.0003242,2]
[421748957,1778095842000,-214.60306816,0.00032,7]
[421748991,1778095842000,-150.0,0.00032562,2]
[421748967,1778095842000,-294.0,0.00032214,30]
[421748958,1778095842000,-2000.0,0.00032055,30]
[421748942,1778095842000,-1104.10525001,0.00031815,4]
[421748955,1778095842000,-188.80465502,0.00032,120]
[421748927,1778095842000,-500.0,0.00031374,120]
[421748928,1778095842000,-500.0,0.00031374,120]
[421748989,1778095842000,-1000.0,0.0003242,2]
[421748926,1778095842000,-500.0,0.00031374,120]
[421748930,1778095842000,-384.6556478,0.00031414,2]
[421748929,1778095842000,-760.0,0.00031374,120]
[421748931,1778095842000,-1000.0,0.000315,7]
[421748940,1778095842000,-352.14670382,0.000317,2]
[421748941,1778095842000,-352.14670382,0.000317,2]
[421748933,1778095842000,-22327.7038016,0.00031648,2]
[421748934,1778095842000,-500.0,0.00031648,120]
[421748932,1778095842000,-2000.0,0.00031507,30]
[421748939,1778095842000,-352.14670382,0.000317,2]
[421748937,1778095842000,-500.0,0.00031648,120]
[421748935,1778095842000,-500.0,0.00031648,120]
[421748938,1778095842000,-760.0,0.00031648,120]
[421748936,1778095842000,-500.0,0.00031648,120]
[421748953,1778095842000,-408.74832476,0.00032,120]
[421748951,1778095842000,-340.5361289,0.00032,120]
[421748952,1778095842000,-2004.52664992,0.00032,120]
[421748954,1778095842000,-724.90857982,0.00032,120]
[421748943,1778095842000,-1221.0,0.00031879,2]
[421748944,1778095842000,-759.0,0.00031922,120]
[421748947,1778095842000,-759.0,0.00031922,120]
[421748946,1778095842000,-759.0,0.00031922,120]
[421748948,1778095842000,-763.931,0.00031922,120]
[421748945,1778095842000,-759.0,0.00031922,120]
[421748949,1778095842000,-155.58,0.00031963,2]
[421748950,1778095842000,-2060.09413618,0.00032,120]
[421748956,1778095842000,-1721.62371616,0.00032,120]
[421748925,1778095842000,-500.0,0.00031374,120]
[421748992,1778095842000,-180.26260677,0.00032603,10]
[421748990,1778095842000,-1000.0,0.0003242,2]
[421749025,1778095842000,-500.0,0.00032603,10]
[421749029,1778095842000,-250.0,0.00032603,2]
[421749030,1778095842000,-500.0,0.00032603,10]
[421749032,1778095842000,-500.0,0.00032603,10]
[421749028,1778095842000,-537.0,0.00032603,10]
[421749033,1778095842000,-260.05273032,0.00032603,2]
[421749031,1778095842000,-537.0,0.00032603,10]
[421749036,1778095842000,-150.0,0.00032603,10]
[421749035,1778095842000,-500.0,0.00032603,10]
[421749037,1778095842000,-500.0,0.00032603,10]
[421749047,1778095842000,-500.0,0.00032603,10]
[421749049,1778095842000,-500.0,0.00032603,10]
[421749038,1778095842000,-537.0,0.00032603,10]
[421749027,1778095842000,-166.38904159,0.00032603,10]
[421749042,1778095842000,-500.0,0.00032603,10]
[421749041,1778095842000,-386.063269,0.00032603,10]
[421749040,1778095842000,-500.0,0.00032603,10]
[421749051,1778095842000,-500.0,0.00032603,10]
[421749043,1778095842000,-150.0,0.00032603,10]
[421749044,1778095842000,-537.0,0.00032603,10]
[421749045,1778095842000,-234.2455945,0.00032603,10]
[421749053,1778095842000,-537.0,0.00032603,10]
[421749054,1778095842000,-500.0,0.00032603,10]
[421749056,1778095842000,-537.0,0.00032603,10]
[421749058,1778095842000,-537.0,0.00032603,10]
[421749057,1778095842000,-537.0,0.00032603,10]
[421748982,1778095842000,-1000.0,0.00032409,2]
[421749059,1778095842000,-537.0,0.00032603,10]
[421749039,1778095842000,-150.0,0.00032603,10]
[421749034,1778095842000,-537.0,0.00032603,10]
[421749055,1778095842000,-637.25809725,0.00032603,10]
[421749026,1778095842000,-250.0,0.00032603,2]
[421749023,1778095842000,-150.0,0.00032603,10]
[421748988,1778095842000,-1000.0,0.0003242,2]
[421749004,1778095842000,-537.0,0.00032603,10]
[421748993,1778095842000,-2000.0,0.00032603,30]
[421748994,1778095842000,-537.0,0.00032603,10]
[421749000,1778095842000,-537.0,0.00032603,10]
[421749001,1778095842000,-193.94104199,0.00032603,10]
[421748997,1778095842000,-537.0,0.00032603,10]
[421749002,1778095842000,-537.0,0.00032603,10]
[421748995,1778095842000,-537.0,0.00032603,10]
[421749003,1778095842000,-537.0,0.00032603,10]
[421748998,1778095842000,-150.0,0.00032603,10]
[421748999,1778095842000,-150.0,0.00032603,10]
[421748996,1778095842000,-150.0,0.00032603,10]
[421748987,1778095842000,-1000.0,0.0003242,2]
[421749005,1778095842000,-537.0,0.00032603,10]
[421749006,1778095842000,-500.0,0.00032603,10]
[421749013,1778095842000,-500.0,0.00032603,10]
[421749011,1778095842000,-500.0,0.00032603,10]
[421749010,1778095842000,-537.0,0.00032603,10]
[421749018,1778095842000,-537.0,0.00032603,10]